lending/lending_fUSD_20250425
["ID","MTS","AMOUNT","RATE_DAILY","PERIOD"]
[358923210,1745545822578,-638.66,0.00048219,30]
[358923211,1745545822624,-1729.94,0.00048219,30]
[358923212,1745545822671,-500.0,0.00048219,30]
[358923213,1745545822722,-500.0,0.00048219,30]
[358923214,1745545822769,-500.0,0.00048219,30]
[358923215,1745545822817,-561.61,0.00048219,30]
[358923216,1745545822866,-950.46,0.00048219,30]
[358923217,1745545822914,-500.0,0.00048219,30]
[358923218,1745545822962,-1212.18,0.00048219,30]
[358923219,1745545823011,-500.0,0.00048219,30]
[358923220,1745545823057,-1343.3,0.00048219,30]
[358923221,1745545823107,-571.58,0.00048219,30]
[358923222,1745545823157,-855.98,0.00048219,30]
[358923223,1745545823206,-500.0,0.00048219,30]
[358923224,1745545823254,-2120.78,0.00048219,30]
[358923225,1745545823304,-527.26559278,0.00048219,30]
[358923226,1745545823355,-603.73,0.00048219,30]
[358923227,1745545823406,-500.0,0.00048219,30]
[358923228,1745545823455,-500.0,0.00048219,30]
[358923229,1745545823504,-500.0,0.00048219,30]
[358923230,1745545823554,-1895.22,0.00048219,30]
[358923231,1745545823605,-500.0,0.00048219,30]
[358923232,1745545823656,-500.0,0.00048219,30]
[358923233,1745545823708,-1806.09,0.00048219,30]
[358923234,1745545823760,-500.0,0.00048219,30]
[358923235,1745545823811,-530.66,0.00048219,30]
[358923236,1745545823862,-500.0,0.00048219,30]
[358923237,1745545823915,-1185.38,0.00048219,30]
[358923238,1745545823966,-500.0,0.00048219,30]
[358923239,1745545824019,-4344.84,0.00048219,30]
[358923240,1745545824071,-500.0,0.00048219,30]
[358923241,1745545824122,-1235.46,0.00048219,30]
[358923242,1745545824181,-300.0,0.00048219,30]
[358923243,1745545824234,-500.0,0.00048219,30]
[358923244,1745545824284,-500.0,0.00048219,30]
[358923245,1745545824334,-500.0,0.00048219,30]
[358923246,1745545824384,-718.37,0.00048219,30]
[358923247,1745545824434,-500.0,0.00048219,30]
[358923248,1745545824487,-500.0,0.00048219,30]
[358923249,1745545824540,-500.0,0.00048219,30]
[358923250,1745545824594,-681.27,0.00048219,30]
[358923251,1745545824645,-547.91,0.00048219,30]
[358923252,1745545824695,-1064.4,0.00048219,30]
[358923253,1745545824745,-536.61,0.00048219,30]
[358923254,1745545824797,-300.0,0.00048219,30]
[358923255,1745545824851,-959.99,0.00048219,30]
[358923256,1745545824903,-956.25,0.00048219,30]
[358923257,1745545824953,-606.43,0.00048219,30]
[358923258,1745545825003,-4110.61,0.00048219,30]
[358923259,1745545825302,-755.51,0.00048219,30]
[358923260,1745545825355,-557.16,0.00048219,30]
[358923261,1745545825407,-500.0,0.00048219,30]
[358923262,1745545825459,-1699.47,0.00048219,30]
[358923263,1745545825510,-751.49,0.00048219,30]
[358923264,1745545825561,-500.0,0.00048219,30]
[358923265,1745545825609,-2518.36,0.00048219,30]
[358923266,1745545825658,-500.0,0.00048219,30]
[358923267,1745545825708,-500.0,0.00048219,30]
[358923268,1745545825757,-1672.29,0.00048219,30]
[358923269,1745545825807,-500.0,0.00048219,30]
[358923270,1745545825857,-500.0,0.00048219,30]
[358923271,1745545825909,-1749.57,0.00048219,30]
[358923272,1745545825963,-500.0,0.00048219,30]
[358923273,1745545826018,-637.35,0.00048219,30]
[358923274,1745545826073,-500.0,0.00048219,30]
[358923275,1745545826127,-500.0,0.00048219,30]
[358923276,1745545826179,-1031.46,0.00048219,30]
[358923277,1745545826229,-1188.42,0.00048219,30]
[358923278,1745545826279,-1886.1,0.00048219,30]
[358923279,1745545826328,-500.0,0.00048219,30]
[358923280,1745545826376,-500.0,0.00048219,30]
[358923281,1745545826427,-500.0,0.00048219,30]
[358923282,1745545826476,-500.0,0.00048219,30]
[358923283,1745545826526,-565.55,0.00048219,30]
[358923284,1745545826576,-500.0,0.00048219,30]
[358923285,1745545826628,-1760.17,0.00048219,30]
[358923286,1745545826679,-500.0,0.00048219,30]
[358923287,1745545826733,-521.47063282,0.00048219,30]
[358923288,1745545826785,-500.0,0.00048219,30]
[358923289,1745545826837,-583.6,0.00048219,30]
[358923290,1745545826889,-1331.75,0.00048219,30]
[358923291,1745545826940,-259.7,0.00048219,30]
[358923292,1745545826990,-1291.79,0.00048219,30]
[358923293,1745545827041,-500.0,0.00048219,30]
[358923294,1745545827095,-1098.22,0.00048219,30]
[358923295,1745545827148,-7163.15,0.00048219,30]
[358923296,1745545827199,-887.54,0.00048219,30]
[358923297,1745545827249,-1248.48,0.00048219,30]
[358923298,1745545827301,-502.93113928,0.00048219,30]
[358923299,1745545827352,-500.0,0.00048219,30]
[358923300,1745545827402,-500.0,0.00048219,30]
[358923301,1745545827454,-1651.06,0.00048219,30]
[358923302,1745545827504,-2239.84,0.00048219,30]
[358923303,1745545827553,-500.0,0.00048219,30]
[358923304,1745545827603,-508.52,0.00048219,30]
[358923305,1745545827653,-500.0,0.00048219,30]
[358923306,1745545827703,-500.0,0.00048219,30]
[358923307,1745545827753,-158.117776,0.00048219,30]
[358923308,1745545827804,-864.33,0.00048219,30]
[358923309,1745545827856,-505.78,0.00048219,30]
[358923310,1745545827907,-632.89,0.00048219,30]
[358923311,1745545827958,-1001.68,0.00048219,30]
[358923312,1745545828007,-500.0,0.00048219,30]
[358923313,1745545828057,-500.0,0.00048219,30]
[358923314,1745545828108,-1483.77,0.00048219,30]
[358923315,1745545828158,-500.0,0.00048219,30]
[358923316,1745545828208,-1236.74,0.00048219,30]
[358923317,1745545828258,-500.0,0.00048219,30]
[358923318,1745545828309,-547.04,0.00048219,30]
[358923319,1745545828360,-500.0,0.00048219,30]
[358923320,1745545828411,-500.0,0.00048219,120]
[358923321,1745545828462,-245.27095313,0.00048219,30]
[358923322,1745545828516,-551.27,0.00048219,30]
[358923323,1745545828567,-500.0,0.00048219,30]
[358923324,1745545828618,-500.0,0.00048219,30]
[358923325,1745545828670,-782.79,0.00048219,30]
[358923326,1745545828721,-500.0,0.00048219,30]
[358923327,1745545828772,-500.0,0.00048219,30]
[358923328,1745545828824,-500.0,0.00048219,30]
[358923329,1745545828875,-500.0,0.00048219,30]
[358923330,1745545828927,-500.0,0.00048219,30]
[358923331,1745545828977,-500.0,0.00048219,30]
[358923332,1745545829028,-1416.53,0.00048219,30]
[358923333,1745545829079,-500.0,0.00048219,30]
[358923334,1745545829130,-432.45425512,0.00048219,30]
[358923335,1745545829181,-894.51,0.00048219,30]
[358923336,1745545829232,-500.0,0.00048219,30]
[358923337,1745545829283,-205.96111902,0.00048219,30]
[358923338,1745545829337,-500.0,0.00048219,30]
[358923339,1745545829386,-1380.06,0.00048219,30]
[358923340,1745545829435,-514.6295298,0.00048219,30]
[358923341,1745545829484,-500.0,0.00048219,30]
[358923342,1745545829532,-1109.29,0.00048219,30]
[358923343,1745545829580,-500.0,0.00048219,30]
[358923344,1745545829629,-982.48,0.00048219,30]
[358923345,1745545829680,-1800.8,0.00048219,30]
[358923346,1745545829729,-612.25,0.00048219,30]
[358923347,1745545829779,-884.99,0.00048219,30]
[358923348,1745545829828,-695.17,0.00048219,30]
[358923349,1745545829879,-665.85,0.00048219,30]
[358923350,1745545829928,-1088.74,0.00048219,30]
[358923351,1745545829987,-500.0,0.00048219,30]
[358923352,1745545830037,-734.7,0.00048219,30]
[358923353,1745545830091,-1916.97,0.00048219,30]
[358923354,1745545830140,-596.84,0.00048219,30]
[358923355,1745545830188,-509.35,0.00048219,30]
[358923356,1745545830237,-500.0,0.00048219,30]
[358923357,1745545830288,-500.0,0.00048219,30]
[358923358,1745545830340,-500.0,0.00048219,30]
[358923359,1745545830389,-2215.94,0.00048219,30]
[358923360,1745545830439,-556.38,0.00048219,30]
[358923361,1745545830490,-500.0,0.00048219,30]
[358923362,1745545830719,-697.76,0.00048219,30]
[358923363,1745545830773,-4287.81,0.00048219,30]
[358923364,1745545830823,-500.0,0.00048219,30]
[358923365,1745545830874,-682.59,0.00048219,30]
[358923366,1745545830925,-737.75,0.00048219,30]
[358923367,1745545830976,-515.03,0.00048219,30]
[358923368,1745545831024,-765.05,0.00048219,30]
[358923369,1745545831074,-1045.74,0.00048219,30]
[358923370,1745545831123,-500.0,0.00048219,30]
[358923371,1745545831172,-500.0,0.00048219,30]
[358923372,1745545831221,-520.26,0.00048219,30]
[358923373,1745545831272,-500.0,0.00048219,30]
[358923374,1745545831321,-500.0,0.00048219,30]
[358923375,1745545831371,-500.0,0.00048219,30]
[358923376,1745545831424,-500.0,0.00048219,30]
[358923377,1745545831475,-500.0,0.00048219,30]
[358923378,1745545831526,-682.45,0.00048219,30]
[358923379,1745545831575,-1909.5,0.00048219,30]
[358923380,1745545831627,-574.53,0.00048219,30]
[358923381,1745545831678,-500.0,0.00048219,30]
[358923382,1745545831728,-695.21,0.00048219,30]
[358923383,1745545831778,-500.0,0.00048219,30]
[358923384,1745545831829,-595.07,0.00048219,30]
[358923385,1745545831880,-500.0,0.00048219,30]
[358923386,1745545831929,-2006.28,0.00048219,30]
[358923387,1745545831979,-696.79,0.00048219,30]
[358923388,1745545832029,-1703.57,0.00048219,30]
[358923389,1745545832081,-536.68,0.00048219,30]
[358923390,1745545832133,-671.65,0.00048219,30]
[358923391,1745545832181,-661.83,0.00048219,30]
[358923393,1745545832231,-990.25,0.00048219,30]
[358923398,1745545832278,-500.0,0.00048219,30]
[358923402,1745545832327,-1139.46,0.00048219,30]
[358923403,1745545832375,-1291.84,0.00048219,30]
[358923404,1745545832423,-500.0,0.00048219,30]
[358923405,1745545832473,-1491.54,0.00048219,30]
[358923406,1745545832520,-500.0,0.00048219,30]
[358923407,1745545832569,-500.0,0.00048219,30]
[358923408,1745545832619,-500.0,0.00048219,30]
[358923409,1745545832669,-1377.9,0.00048219,30]
[358923410,1745545832718,-1021.1,0.00048219,30]
[358923411,1745545832766,-500.0,0.00048219,30]
[358923412,1745545832815,-944.01,0.00048219,30]
[358923413,1745545832863,-500.0,0.00048219,30]
[358923414,1745545832912,-1148.56,0.00048219,30]
[358923415,1745545832962,-1758.33,0.00048219,30]
[358923416,1745545833012,-1342.47,0.00048219,30]
[358923417,1745545833062,-525.11047596,0.00048219,30]
[358923418,1745545833115,-500.0,0.00048219,30]
[358923419,1745545833167,-599.7489894,0.00048219,30]
[358923420,1745545833219,-780.33,0.00048219,30]
[358923421,1745545833272,-500.0,0.00048219,30]
[358923422,1745545833327,-1899.46,0.00048219,30]
[358923423,1745545833380,-602.51,0.00048219,30]
[358923424,1745545833434,-740.72,0.000484,60]
[358923425,1745545833487,-1269.73,0.00048493,30]
[358923426,1745545833540,-500.0,0.00048493,30]
[358923427,1745545833594,-1618.3,0.00048493,30]
[358923428,1745545833647,-500.0,0.00048493,30]
[358923429,1745545833703,-1638.07,0.00048493,30]
[358923430,1745545833758,-703.28,0.00048493,30]
[358923431,1745545833813,-1425.46,0.00048493,30]
[358923432,1745545833869,-638.66,0.00048493,30]
[358923433,1745545833924,-1729.94,0.00048493,30]
[358923434,1745545833976,-500.0,0.00048493,30]
[358923435,1745545834027,-500.0,0.00048493,30]
[358923436,1745545834079,-500.0,0.00048493,30]
[358923437,1745545834135,-561.61,0.00048493,30]
[358923438,1745545834189,-950.46,0.00048493,30]
[358923439,1745545834240,-500.0,0.00048493,30]
[358923440,1745545834290,-1212.18,0.00048493,30]
[358923441,1745545834341,-1343.3,0.00048493,30]
[358923442,1745545834392,-500.0,0.00048493,30]
[358923443,1745545834444,-571.58,0.00048493,30]
[358923444,1745545834496,-855.98,0.00048493,30]
[358923445,1745545834547,-500.0,0.00048493,30]
[358923446,1745545834599,-2120.78,0.00048493,30]
[358923447,1745545834651,-603.73,0.00048493,30]
[358923448,1745545834703,-500.0,0.00048493,30]
[358923449,1745545834755,-500.0,0.00048493,30]
[358923450,1745545834806,-500.0,0.00048493,30]
[358923451,1745545834857,-1895.22,0.00048493,30]
[358923452,1745545834909,-500.0,0.00048493,30]
[358923453,1745545834961,-500.0,0.00048493,30]
[358923454,1745545835012,-1806.09,0.00048493,30]
[358923455,1745545835063,-500.0,0.00048493,30]
[358923456,1745545835114,-530.66,0.00048493,30]
[358923457,1745545835166,-500.0,0.00048493,30]
[358923458,1745545835215,-1185.38,0.00048493,30]
[358923459,1745545835265,-500.0,0.00048493,30]
[358923460,1745545835318,-4344.84,0.00048493,30]
[358923461,1745545835370,-500.0,0.00048493,30]
[358923462,1745545835421,-1235.46,0.00048493,30]
[358923463,1745545835472,-300.0,0.00048493,30]
[358923464,1745545835522,-500.0,0.00048493,30]
[358923465,1745545835572,-500.0,0.00048493,30]
[358923466,1745545835620,-500.0,0.00048493,30]
[358923467,1745545835670,-718.37,0.00048493,30]
[358923468,1745545835720,-500.0,0.00048493,30]
[358923469,1745545835771,-500.0,0.00048493,30]
[358923470,1745545835821,-500.0,0.00048493,30]
[358923471,1745545835873,-681.27,0.00048493,30]
[358923472,1745545835927,-547.91,0.00048493,30]
[358923473,1745545835978,-1064.4,0.00048493,30]
[358923474,1745545836030,-536.61,0.00048493,30]
[358923475,1745545836257,-300.0,0.00048493,30]
[358923476,1745545836313,-959.99,0.00048493,30]
[358923477,1745545836367,-956.25,0.00048493,30]
[358923478,1745545836418,-606.43,0.00048493,30]
[358923479,1745545836470,-4110.61,0.00048493,30]
[358923480,1745545836526,-755.51,0.00048493,30]
[358923481,1745545836577,-557.16,0.00048493,30]
[358923482,1745545836631,-500.0,0.00048493,30]
[358923483,1745545836682,-1699.47,0.00048493,30]
[358923484,1745545836732,-751.49,0.00048493,30]
[358923485,1745545836781,-500.0,0.00048493,30]
[358923486,1745545836832,-2518.36,0.00048493,30]
[358923487,1745545836881,-500.0,0.00048493,30]
[358923488,1745545836932,-500.0,0.00048493,30]
[358923489,1745545836983,-1672.29,0.00048493,30]
[358923490,1745545837030,-500.0,0.00048493,30]
[358923491,1745545837079,-500.0,0.00048493,30]
[358923492,1745545837125,-1749.57,0.00048493,30]
[358923493,1745545837172,-500.0,0.00048493,30]
[358923494,1745545837218,-637.35,0.00048493,30]
[358923495,1745545837264,-500.0,0.00048493,30]
[358923496,1745545837311,-500.0,0.00048493,30]
[358923497,1745545837362,-1031.46,0.00048493,30]
[358923499,1745545837410,-1188.42,0.00048493,30]
[358923502,1745545837459,-1886.1,0.00048493,30]
[358923505,1745545837507,-500.0,0.00048493,30]
[358923506,1745545837556,-500.0,0.00048493,30]
[358923507,1745545837604,-500.0,0.00048493,30]
[358923508,1745545837653,-209.39224565,0.00048493,30]
[358923509,1745545837703,-565.55,0.00048493,30]
[358923510,1745545837752,-500.0,0.00048493,30]
[358923511,1745545837800,-1760.17,0.00048493,30]
[358923512,1745545837848,-500.0,0.00048493,30]
[358923513,1745545837897,-500.0,0.00048493,30]
[358923515,1745545837947,-583.6,0.00048493,30]
[358923521,1745545837995,-1331.75,0.00048493,30]
[358923527,1745545838044,-259.7,0.00048493,30]
[358923533,1745545838097,-1291.79,0.00048493,30]
[358923539,1745545838148,-500.0,0.00048493,30]
[358923544,1745545838197,-1098.22,0.00048493,30]
[358923546,1745545838246,-7163.15,0.00048493,30]
[358923547,1745545838295,-887.54,0.00048493,30]
[358923548,1745545838344,-1248.48,0.00048493,30]
[358923549,1745545838393,-500.0,0.00048493,30]
[358923550,1745545838449,-397.52823786,0.00048493,30]
[358923551,1745545838502,-1651.06,0.00048493,30]
[358923552,1745545838554,-2239.84,0.00048493,30]
[358923553,1745545838604,-500.0,0.00048493,30]
[358923554,1745545838653,-508.52,0.00048493,30]
[358923555,1745545838703,-500.0,0.00048493,30]
[358923556,1745545838754,-500.0,0.00048493,30]
[358923557,1745545838804,-864.33,0.00048493,30]
[358923558,1745545838855,-505.78,0.00048493,30]
[358923559,1745545838914,-632.89,0.00048493,30]
[358923560,1745545838969,-1001.68,0.00048493,30]
[358923561,1745545839021,-500.0,0.00048493,30]
[358923562,1745545839073,-500.0,0.00048493,30]
[358923563,1745545839124,-1483.77,0.00048493,30]
[358923564,1745545839176,-500.0,0.00048493,30]
[358923565,1745545839228,-1236.74,0.00048493,30]
[358923566,1745545839277,-500.0,0.00048493,30]
[358923567,1745545839329,-547.04,0.00048493,30]
[358923568,1745545839381,-500.0,0.00048493,30]
[358923569,1745545839438,-500.0,0.00048493,120]
[358923570,1745545839488,-551.27,0.00048493,30]
[358923571,1745545839538,-448.20398078,0.00048493,30]
[358923572,1745545839588,-387.74849559,0.00048493,30]
[358923573,1745545839640,-782.79,0.00048493,30]
[358923574,1745545839690,-500.0,0.00048493,30]
[358923576,1745545839740,-500.0,0.00048493,30]
[358923577,1745545839790,-500.0,0.00048493,30]
[358923578,1745545839839,-500.0,0.00048493,30]
[358923579,1745545839890,-500.0,0.00048493,30]
[358923580,1745545839939,-500.0,0.00048493,30]
[358923581,1745545840000,-1416.53,0.00048493,30]
[358923582,1745545840053,-500.0,0.00048493,30]
[358923583,1745545840104,-894.51,0.00048493,30]
[358923584,1745545840156,-500.0,0.00048493,30]
[358923585,1745545840205,-500.0,0.00048493,30]
[358923586,1745545840254,-1380.06,0.00048493,30]
[358923587,1745545840304,-500.0,0.00048493,30]
[358923588,1745545840355,-1109.29,0.00048493,30]
[358923591,1745545840406,-500.0,0.00048493,30]
[358923598,1745545840467,-982.48,0.00048493,30]
[358923605,1745545840522,-1800.8,0.00048493,30]
[358923611,1745545840571,-612.25,0.00048493,30]
[358923617,1745545840622,-884.99,0.00048493,30]
[358923623,1745545840673,-695.17,0.00048493,30]
[358923629,1745545840724,-665.85,0.00048493,30]
[358923633,1745545840774,-1088.74,0.00048493,30]
[358923634,1745545840825,-500.0,0.00048493,30]
[358923635,1745545840874,-734.7,0.00048493,30]
[358923636,1745545840923,-1916.97,0.00048493,30]
[358923642,1745545840971,-596.84,0.00048493,30]
[358923648,1745545841020,-509.35,0.00048493,30]
[358923654,1745545841070,-500.0,0.00048493,30]
[358923660,1745545841120,-500.0,0.00048493,30]
[358923666,1745545841170,-500.0,0.00048493,30]
[358923673,1745545841219,-2215.94,0.00048493,30]
[358923679,1745545841269,-556.38,0.00048493,30]
[358923685,1745545841320,-500.0,0.00048493,30]
[358923691,1745545841370,-697.76,0.00048493,30]
[358923697,1745545841419,-4287.81,0.00048493,30]
[358923704,1745545841476,-500.0,0.00048493,30]
[358923741,1745545841812,-682.59,0.00048493,30]
[358923747,1745545841868,-737.75,0.00048493,30]
[358923753,1745545841917,-515.03,0.00048493,30]
[358923759,1745545841967,-765.05,0.00048493,30]
[358923765,1745545842017,-1045.74,0.00048493,30]
[358923770,1745545842068,-500.0,0.00048493,30]
[358923776,1745545842118,-500.0,0.00048493,30]
[358923782,1745545842167,-520.26,0.00048493,30]
[358923788,1745545842218,-500.0,0.00048493,30]
[358923794,1745545842267,-500.0,0.00048493,30]
[358923800,1745545842318,-500.0,0.00048493,30]
[358923806,1745545842372,-500.0,0.00048493,30]
[358923812,1745545842423,-500.0,0.00048493,30]
[358923823,1745545842476,-682.45,0.00048493,30]
[358923829,1745545842528,-1909.5,0.00048493,30]
[358923836,1745545842580,-574.53,0.00048493,30]
[358923842,1745545842631,-500.0,0.00048493,30]
[358923849,1745545842681,-695.21,0.00048493,30]
[358923857,1745545842732,-500.0,0.00048493,30]
[358923866,1745545842783,-595.07,0.00048493,30]
[358923872,1745545842835,-500.0,0.00048493,30]
[358923879,1745545842891,-2006.28,0.00048493,30]
[358923886,1745545842942,-696.79,0.00048493,30]
[358923892,1745545842994,-1703.57,0.00048493,30]
[358923898,1745545843044,-536.68,0.00048493,30]
[358923905,1745545843097,-671.65,0.00048493,30]
[358923911,1745545843149,-661.83,0.00048493,30]
[358923918,1745545843200,-990.25,0.00048493,30]
[358923924,1745545843250,-500.0,0.00048493,30]
[358923931,1745545843301,-1139.46,0.00048493,30]
[358923940,1745545843353,-1291.84,0.00048493,30]
[358923946,1745545843402,-244.10446303,0.00048493,30]
[358923952,1745545843454,-1491.54,0.00048493,30]
[358923959,1745545843506,-500.0,0.00048493,30]
[358923964,1745545843558,-500.0,0.00048493,30]
[358923970,1745545843610,-500.0,0.00048493,30]
[358923976,1745545843664,-1377.9,0.00048493,30]
[358923977,1745545843717,-1021.1,0.00048493,30]
[358923981,1745545843768,-500.0,0.00048493,30]
[358923987,1745545843820,-944.01,0.00048493,30]
[358923993,1745545843872,-500.0,0.00048493,30]
[358923999,1745545843923,-1148.56,0.00048493,30]
[358924005,1745545843973,-1758.33,0.00048493,30]
[358924012,1745545844023,-1342.47,0.00048493,30]
[358924017,1745545844073,-500.0,0.00048493,30]
[358924023,1745545844124,-780.33,0.00048493,30]
[358924030,1745545844175,-500.0,0.00048493,30]
[358924036,1745545844226,-1899.46,0.00048493,30]
[358924042,1745545844277,-602.51,0.00048493,30]
[358924048,1745545844328,-1269.73,0.00048767,30]
[358924054,1745545844377,-500.0,0.00048767,30]
[358924055,1745545844427,-1618.3,0.00048767,30]
[358924056,1745545844478,-500.0,0.00048767,30]
[358924057,1745545844529,-1638.07,0.00048767,30]
[358924058,1745545844579,-703.28,0.00048767,30]
[358924059,1745545844629,-1425.46,0.00048767,30]
[358924060,1745545844682,-638.66,0.00048767,30]
[358924061,1745545844734,-1729.94,0.00048767,30]
[358924062,1745545844783,-500.0,0.00048767,30]
[358924063,1745545844833,-500.0,0.00048767,30]
[358924064,1745545844883,-500.0,0.00048767,30]
[358924065,1745545844936,-561.61,0.00048767,30]
[358924066,1745545844987,-950.46,0.00048767,30]
[358924067,1745545845038,-500.0,0.00048767,30]
[358924068,1745545845090,-1212.18,0.00048767,30]
[358924069,1745545845142,-1343.3,0.00048767,30]
[358924070,1745545845192,-633.45818773,0.00048767,30]
[358924071,1745545845242,-571.58,0.00048767,30]
[358924072,1745545845292,-855.98,0.00048767,30]
[358924073,1745545845342,-642.82220623,0.00048767,30]
[358924074,1745545845389,-2120.78,0.00048767,30]
[358924076,1745545845439,-603.73,0.00048767,30]
[358924077,1745545845491,-500.0,0.00048767,30]
[358924078,1745545845544,-500.0,0.00048767,30]
[358924079,1745545845597,-500.0,0.00048767,30]
[358924080,1745545845650,-1895.22,0.00048767,30]
[358924081,1745545845703,-500.0,0.00048767,30]
[358924082,1745545845758,-500.0,0.00048767,30]
[358924083,1745545845812,-1806.09,0.00048767,30]
[358924084,1745545845868,-500.0,0.00048767,30]
[358924085,1745545845923,-530.66,0.00048767,30]
[358924086,1745545845976,-500.0,0.00048767,30]
[358924087,1745545846029,-1185.38,0.00048767,30]
[358924093,1745545846081,-500.0,0.00048767,30]
[358924099,1745545846135,-4344.84,0.00048767,30]
[358924105,1745545846187,-500.0,0.00048767,30]
[358924110,1745545846237,-1235.46,0.00048767,30]
[358924111,1745545846286,-300.0,0.00048767,30]
[358924112,1745545846336,-500.0,0.00048767,30]
[358924114,1745545846386,-500.0,0.00048767,30]
[358924120,1745545846436,-500.0,0.00048767,30]
[358924126,1745545846488,-718.37,0.00048767,30]
[358924130,1745545846540,-184.40862846,0.00048767,30]
[358924131,1745545846591,-500.0,0.00048767,30]
[358924132,1745545846641,-500.0,0.00048767,30]
[358924133,1745545846691,-681.27,0.00048767,30]
[358924134,1745545846741,-547.91,0.00048767,30]
[358924135,1745545846790,-1064.4,0.00048767,30]
[358924136,1745545846839,-536.61,0.00048767,30]
[358924137,1745545846888,-300.0,0.00048767,30]
[358924138,1745545846939,-959.99,0.00048767,30]
[358924139,1745545846987,-956.25,0.00048767,30]
[358924140,1745545847035,-606.43,0.00048767,30]
[358924141,1745545847084,-4110.61,0.00048767,30]
[358924142,1745545847133,-755.51,0.00048767,30]
[358924143,1745545847375,-557.16,0.00048767,30]
[358924144,1745545847428,-500.0,0.00048767,30]
[358924145,1745545847480,-1699.47,0.00048767,30]
[358924146,1745545847530,-751.49,0.00048767,30]
[358924147,1745545847579,-500.0,0.00048767,30]
[358924148,1745545847627,-2518.36,0.00048767,30]
[358924149,1745545847679,-500.0,0.00048767,30]
[358924150,1745545847729,-500.0,0.00048767,30]
[358924151,1745545847779,-1672.29,0.00048767,30]
[358924152,1745545847829,-500.0,0.00048767,30]
[358924153,1745545847878,-533.45955439,0.00048767,30]
[358924154,1745545847926,-1749.57,0.00048767,30]
[358924155,1745545847975,-500.0,0.00048767,30]
[358924156,1745545848023,-637.35,0.00048767,30]
[358924157,1745545848071,-500.0,0.00048767,30]
[358924158,1745545848121,-500.0,0.00048767,30]
[358924159,1745545848172,-1031.46,0.00048767,30]
[358924160,1745545848222,-1188.42,0.00048767,30]
[358924161,1745545848272,-1886.1,0.00048767,30]
[358924162,1745545848328,-500.0,0.00048767,30]
[358924163,1745545848383,-500.0,0.00048767,30]
[358924164,1745545848438,-500.0,0.00048767,30]
[358924165,1745545848490,-565.55,0.00048767,30]
[358924166,1745545848541,-500.0,0.00048767,30]
[358924167,1745545848591,-1760.17,0.00048767,30]
[358924168,1745545848643,-500.0,0.00048767,30]
[358924169,1745545848696,-500.0,0.00048767,30]
[358924170,1745545848749,-583.6,0.00048767,30]
[358924171,1745545848802,-1331.75,0.00048767,30]
[358924172,1745545848854,-259.7,0.00048767,30]
[358924173,1745545848905,-1291.79,0.00048767,30]
[358924174,1745545848958,-500.0,0.00048767,30]
[358924175,1745545849010,-1098.22,0.00048767,30]
[358924176,1745545849063,-7163.15,0.00048767,30]